bitfinex-derivatives/quotes_BTCF0:USTF0_20241203
["timestamp","ask_amount","ask_price","bid_price","bid_amount"]
[1733237989094,0.3608,95313.0,95308.0,0.00012708]
[1733237990403,0.38981398,95313.0,95309.0,0.052455]
[1733237990791,0.39881398,95313.0,95309.0,0.052455]
[1733237991189,0.38981398,95313.0,95309.0,0.052455]
[1733237991388,0.39881398,95313.0,95308.0,0.00212708]
[1733237992095,0.39581398,95313.0,95309.0,0.001]
[1733237992404,0.39781398,95313.0,95309.0,0.001]
[1733237993105,0.39581398,95313.0,95309.0,0.001]
[1733237993296,0.39781398,95313.0,95309.0,0.001]
[1733237993602,0.40081398,95313.0,95308.0,0.00112708]
[1733237993993,4e-05,95309.0,95308.0,0.00112708]
[1733237994203,4e-05,95309.0,95308.0,0.00012708]
[1733237996413,0.052498,95309.0,95308.0,0.00012708]
[1733237996602,0.33200243,95309.0,95268.0,0.3713]
[1733237996903,0.3608,95282.0,95281.0,0.052473]
[1733237997607,0.3608,95294.0,95293.0,0.052467]
[1733237998501,0.39073172,95294.0,95293.0,4e-05]
[1733237998704,0.39073172,95294.0,95293.0,0.052507]
[1733237999605,0.3608,95302.0,95301.0,0.052462]
[1733238000099,0.39084694,95302.0,95301.0,0.052502]
[1733238000502,0.39084694,95302.0,95301.0,4e-05]
[1733238000699,0.49578589,95302.0,95293.0,0.002]
[1733238000906,0.3608,95294.0,95293.0,0.002]
[1733238001104,0.3608,95294.0,95289.0,0.052469]
[1733238001295,0.3608,95294.0,95277.0,0.052475]
[1733238001502,0.3608,95282.0,95260.0,0.00076]
[1733238001808,0.3608,95282.0,95260.0,0.19031875]
[1733238002010,0.3608,95282.0,95281.0,0.052473]
[1733238002201,0.3608,95282.0,95256.0,0.052487]
[1733238002401,0.3608,95261.0,95260.0,0.052485]
[1733238003511,0.3608,95261.0,95259.0,0.00012211]
[1733238003706,0.277565,95260.0,95259.0,0.00012211]
[1733238003930,0.052494,95244.0,95243.0,0.2445342]
[1733238004214,0.72168,95244.0,95243.0,0.2445342]
[1733238004402,0.36088,95244.0,95243.0,0.2970282]
[1733238004602,0.001,95261.0,95243.0,0.8304142]
[1733238004803,0.00012734,95252.0,95251.0,0.05249]
[1733238005017,0.00012734,95252.0,95251.0,0.05256608]
[1733238005209,0.001,95261.0,95260.0,0.052485]
[1733238005512,0.3608,95283.0,95282.0,0.052473]
[1733238005700,0.3608,95283.0,95263.0,0.052483]
[1733238005701,0.3608,95283.0,95267.0,0.3608]
[1733238005900,0.3608,95283.0,95281.0,0.052473]
[1733238006112,0.3608,95283.0,95282.0,4e-05]
[1733238006319,0.36088407,95283.0,95282.0,4e-05]
[1733238007598,8.407e-05,95283.0,95282.0,4e-05]
[1733238008110,0.00408407,95283.0,95282.0,4e-05]
[1733238008906,0.00708407,95283.0,95282.0,4e-05]
[1733238009111,0.00308407,95283.0,95282.0,4e-05]
[1733238009505,8.407e-05,95283.0,95282.0,4e-05]
[1733238009704,0.00408407,95283.0,95282.0,4e-05]
[1733238010306,0.1389577,95283.0,95255.0,0.3608]
[1733238010511,0.1389577,95283.0,95252.0,0.00076]
[1733238010512,0.3598,95256.0,95252.0,0.00076]
[1733238010713,0.3598,95256.0,95254.0,0.052488]
[1733238010921,0.3598,95256.0,95243.0,0.02100645]
[1733238011211,4e-05,95252.0,95251.0,0.05256608]
[1733238012714,0.3608,95253.0,95251.0,7.608e-05]
[1733238012916,0.3608,95306.0,95252.0,0.80188]
[1733238013107,0.4333896,95305.0,95276.0,0.3608]
[1733238013413,0.3608,95288.0,95266.0,0.3608]
[1733238013604,0.3608,95288.0,95255.0,0.3608]
[1733238013605,0.052479,95272.0,95255.0,0.3608]
[1733238013808,0.3608,95280.0,95255.0,0.3608]
[1733238013809,4e-05,95267.0,95255.0,0.3608]
[1733238014420,0.10497199,95266.0,95252.0,4e-05]
[1733238014719,4e-05,95253.0,95252.0,0.052529]
[1733238014914,4e-05,95253.0,95252.0,4e-05]
[1733238016619,0.00304,95253.0,95252.0,0.00104]
[1733238016813,0.00304,95253.0,95235.0,0.3608]
[1733238016814,0.05249,95251.0,95235.0,0.3608]
[1733238017014,0.3608,95249.0,95235.0,0.3608]
[1733238017214,4e-05,95236.0,95235.0,0.3608]
[1733238018710,4e-05,95236.0,95235.0,0.002]
[1733238018915,0.22464,95236.0,95235.0,0.002]
[1733238019114,0.22464,95236.0,95221.0,0.00010132]
[1733238019115,0.052505,95223.0,95221.0,0.00010132]
[1733238019309,0.8277357,95236.0,95200.0,0.1]
[1733238019310,0.36092467,95222.0,95200.0,0.1]
[1733238019524,0.3608,95201.0,95200.0,0.1]
[1733238019712,0.36084,95201.0,95200.0,0.1]
[1733238021018,0.3903636,95201.0,95200.0,0.152518]
[1733238021227,0.3903636,95201.0,95200.0,0.1]
[1733238023120,0.3913636,95201.0,95200.0,0.1]
[1733238024618,0.54892206,95201.0,95200.0,0.1]
[1733238024821,0.49640506,95201.0,95200.0,0.1]
[1733238025722,0.72108506,95201.0,95200.0,0.1]
[1733238026319,0.49640506,95201.0,95200.0,0.1]
[1733238026830,0.0305636,95201.0,95200.0,0.1]
[1733238027127,0.3608,95217.0,95201.0,0.052517]
[1733238027520,0.10504146,95216.0,95201.0,0.052517]
[1733238027715,0.10504146,95216.0,95200.0,0.1]
[1733238027921,0.3608,95209.0,95200.0,0.1]
[1733238028424,0.3608,95209.0,95207.0,0.052514]
[1733238029921,0.3608,95209.0,95204.0,0.052516]
[1733238030118,0.002,95216.0,95215.0,0.05251]
[1733238030326,0.00012467,95222.0,95221.0,0.052506]
[1733238030525,0.02102231,95259.0,95231.0,0.052501]
[1733238030526,0.02936839,95232.0,95231.0,0.052501]
[1733238030720,0.413278,95272.0,95233.0,0.052499]
[1733238031024,0.10500727,95265.0,95255.0,0.052487]
[1733238031225,0.3608,95259.0,95255.0,0.052487]
[1733238031420,0.3608,95261.0,95255.0,0.052487]
[1733238031723,0.00010936,95260.0,95255.0,0.3608]
[1733238031924,0.00010936,95260.0,95258.0,0.052484]
[1733238032318,0.00010936,95260.0,95255.0,0.3608]
[1733238032516,0.00010936,95260.0,95255.0,0.22472]
[1733238032724,4e-05,95256.0,95255.0,0.22472]
[1733238033031,4e-05,95256.0,95253.0,0.052487]
[1733238033230,4e-05,95256.0,95252.0,0.00011986]
[1733238033231,0.3608,95255.0,95252.0,0.00011986]
[1733238033430,4e-05,95254.0,95252.0,0.00011986]
[1733238033725,0.00010936,95260.0,95252.0,0.00011986]
[1733238034231,0.00010936,95260.0,95259.0,8.001e-05]
[1733238035320,4e-05,95267.0,95259.0,8.001e-05]
[1733238035527,0.3608,95303.0,95266.0,0.413278]
[1733238035727,0.3904422,95294.0,95277.0,0.3608]
[1733238035931,0.3904422,95294.0,95293.0,0.00012001]
[1733238036321,0.0296422,95294.0,95293.0,0.00012001]
[1733238036523,0.00011227,95294.0,95293.0,0.00012001]
[1733238037520,0.00611227,95294.0,95293.0,0.00112001]
[1733238037826,0.00611227,95294.0,95293.0,0.36192001]
[1733238038231,0.008,95294.0,95293.0,0.41438301]
[1733238038433,0.3204,95328.0,95293.0,0.41438301]
[1733238038434,0.3608,95331.0,95293.0,0.66192001]
[1733238038628,0.03022957,95324.0,95319.0,0.3608]
[1733238038932,0.3608,95331.0,95321.0,0.05256801]
[1733238039137,0.00397924,95322.0,95321.0,0.05265163]
[1733238040229,0.02100208,95363.0,95321.0,0.22480363]
[1733238040230,0.3608,95359.0,95321.0,0.22480363]
[1733238040436,0.05243,95354.0,95336.0,0.3608]
[1733238040638,0.052427,95359.0,95358.0,0.00012001]
[1733238041131,0.15729442,95359.0,95358.0,0.00012001]
[1733238041331,0.15738001,95359.0,95358.0,0.00012001]
[1733238041538,0.16438001,95359.0,95358.0,0.00012001]
[1733238042733,0.16638001,95359.0,95358.0,0.00112001]
[1733238042938,0.11395301,95359.0,95358.0,0.00112001]
[1733238043240,0.00908559,95359.0,95358.0,0.00112001]
[1733238043638,0.00060001,95374.0,95358.0,0.22568001]
[1733238043837,0.58536,95393.0,95364.0,0.3608]
[1733238044043,0.58536,95393.0,95373.0,0.00012001]
[1733238044239,0.58536,95393.0,95372.0,0.05242]
[1733238044240,0.3608,95393.0,95392.0,0.00012001]
[1733238044539,0.3896549,95393.0,95392.0,0.00012001]
[1733238044738,0.49460025,95393.0,95392.0,0.00012001]
[1733238045533,0.49460025,95393.0,95392.0,0.00112001]
[1733238045842,0.50360025,95393.0,95392.0,0.00112001]
[1733238046441,0.39874108,95393.0,95392.0,0.00112001]
[1733238046832,0.03794108,95393.0,95392.0,0.00112001]
[1733238047244,0.03894108,95393.0,95392.0,0.00112001]
[1733238047540,0.03894108,95393.0,95392.0,0.22508001]
[1733238047541,0.01008618,95393.0,95392.0,0.22508001]
[1733238047939,8.618e-05,95393.0,95392.0,0.22508001]
[1733238048238,0.00708618,95393.0,95392.0,0.22608001]
[1733238048736,0.00708618,95393.0,95392.0,0.22508001]
[1733238049036,0.1,95400.0,95399.0,0.052405]
[1733238049239,0.04808786,95400.0,95399.0,0.413205]
[1733238049446,0.04808786,95400.0,95399.0,0.41332501]
[1733238050439,0.04808786,95400.0,95399.0,0.36092001]
[1733238050642,0.04808786,95400.0,95399.0,0.00012001]
[1733238051031,0.04908786,95400.0,95399.0,0.05197001]
[1733238051334,0.15391021,95400.0,95399.0,0.05197001]
[1733238051531,0.04908786,95400.0,95399.0,0.05197001]
[1733238052134,0.04808786,95400.0,95399.0,0.05097001]
[1733238052334,0.04908786,95400.0,95399.0,0.05197001]
[1733238052540,0.05308786,95400.0,95399.0,0.05197001]
[1733238055242,0.10549186,95400.0,95399.0,0.05197001]
[1733238055550,0.57111421,95400.0,95399.0,0.05197001]
[1733238055840,0.46629186,95400.0,95399.0,0.05197001]
[1733238056234,0.46629186,95400.0,95388.0,7.76e-05]
[1733238056235,0.05241,95389.0,95388.0,7.76e-05]
[1733238056433,0.41321,95389.0,95388.0,7.76e-05]
[1733238056635,0.41325,95389.0,95388.0,7.76e-05]
[1733238056839,0.51807235,95389.0,95388.0,7.76e-05]
[1733238057042,0.46566235,95389.0,95388.0,7.76e-05]
[1733238057230,0.36084,95389.0,95388.0,7.76e-05]
[1733238058344,0.00304,95389.0,95388.0,0.0524886]
[1733238059246,0.00404,95389.0,95388.0,0.0524886]
[1733238059638,0.04908786,95400.0,95399.0,0.052405]
[1733238060342,0.04808786,95400.0,95399.0,0.052445]
[1733238060733,0.04808786,95400.0,95399.0,4e-05]
[1733238060933,0.15291021,95400.0,95399.0,4e-05]
[1733238061143,0.26770915,95400.0,95388.0,0.0010776]
[1733238061441,0.36084,95389.0,95388.0,7.76e-05]
[1733238061845,4e-05,95389.0,95388.0,7.76e-05]
[1733238062052,4e-05,95389.0,95388.0,1.0252776]
[1733238062253,0.05108786,95400.0,95399.0,0.053405]
[1733238062542,0.05108786,95400.0,95399.0,0.414245]
[1733238062742,0.05108786,95400.0,95399.0,0.638045]
[1733238062942,0.3608,95432.0,95399.0,0.638045]
[1733238062943,0.03017153,95437.0,95401.0,0.0015723]
[1733238063150,0.3658,95450.0,95433.0,0.3608]
[1733238063340,0.3658,95450.0,95446.0,0.052379]
[1733238063536,0.39494711,95450.0,95449.0,4e-05]
[1733238063964,0.49984774,95450.0,95449.0,4e-05]
[1733238064139,0.052381,95442.0,95433.0,0.3634]
[1733238064337,0.052381,95442.0,95426.0,0.0026]
[1733238064539,0.9134255,95450.0,95423.0,0.2238]
[1733238064540,4e-05,95434.0,95423.0,0.2238]
[1733238064744,4e-05,95434.0,95424.0,0.2238]
[1733238065143,0.00507828,95450.0,95429.0,0.3608]
[1733238065349,0.00507828,95450.0,95424.0,0.5238]
[1733238065350,0.00707828,95450.0,95449.0,0.053377]
[1733238065649,0.3608,95468.0,95449.0,0.22484]
[1733238065848,0.3608,95486.0,95449.0,0.22484]
[1733238065849,0.3608,95486.0,95471.0,0.052365]
[1733238066050,0.3608,95486.0,95473.0,0.052364]
[1733238066240,0.39003226,95486.0,95470.0,0.3608]
[1733238066436,0.052359,95483.0,95469.0,0.2238]
[1733238066639,0.10475756,95485.0,95467.0,4e-05]
[1733238066640,4e-05,95471.0,95467.0,4e-05]
[1733238066845,4e-05,95471.0,95467.0,0.052407]
[1733238067048,4e-05,95468.0,95467.0,0.052407]
[1733238067343,4e-05,95468.0,95467.0,4e-05]
[1733238067743,4e-05,95468.0,95467.0,0.052407]
[1733238068148,4e-05,95468.0,95467.0,0.00104]
[1733238068445,0.10478768,95468.0,95467.0,0.00104]
[1733238069449,0.052369,95462.0,95461.0,0.0001293]
[1733238069650,0.052372,95457.0,95437.0,0.0026]
[1733238069947,4e-05,95438.0,95434.0,0.052384]
[1733238070142,4e-05,95438.0,95435.0,0.052384]
[1733238070337,4e-05,95438.0,95433.0,0.36156]
[1733238070544,0.3608,95435.0,95422.0,0.22529195]
[1733238070746,0.00011226,95434.0,95422.0,0.00157195]
[1733238070940,0.00011226,95434.0,95432.0,0.052386]
[1733238071148,0.052356,95487.0,95443.0,0.0399]
[1733238071468,0.02096288,95496.0,95467.0,0.413206]
[1733238071645,0.02995193,95482.0,95467.0,0.58456]
[1733238071948,0.10479104,95495.0,95481.0,0.36084]
[1733238072143,0.0001176,95494.0,95489.0,0.3608]
[1733238072551,0.10474,95493.0,95489.0,0.3608]
[1733238073256,0.0001176,95494.0,95489.0,0.3608]
[1733238073646,0.0091176,95494.0,95489.0,0.3628]
[1733238073849,0.0091176,95494.0,95492.0,0.052353]
[1733238074544,0.0081176,95494.0,95492.0,0.052353]
[1733238075150,0.0081176,95494.0,95489.0,0.3628]
[1733238075545,4e-05,95490.0,95489.0,0.3628]
[1733238076676,4e-05,95490.0,95489.0,0.3618]
[1733238076846,4e-05,95490.0,95489.0,0.3608]
[1733238077647,4e-05,95490.0,95489.0,0.3618]
[1733238077851,0.00304,95490.0,95489.0,0.3628]
[1733238079256,0.0319229,95490.0,95489.0,0.3628]
[1733238079457,0.00304,95490.0,95489.0,0.3628]
[1733238080461,0.16011755,95490.0,95489.0,0.3628]
[1733238080659,0.16011755,95490.0,95489.0,0.002]
[1733238080961,0.16011755,95490.0,95465.0,0.02095764]
[1733238080962,0.052355,95488.0,95458.0,0.3608]
[1733238081155,0.052363,95474.0,95464.0,0.00157125]
[1733238081347,0.90823126,95490.0,95464.0,0.29397688]
[1733238081348,4e-05,95465.0,95464.0,0.29397688]
[1733238081552,0.00356001,95490.0,95469.0,0.052365]
[1733238081849,0.10472355,95489.0,95484.0,0.3608]
[1733238082049,0.052354,95490.0,95484.0,0.3608]
[1733238082250,0.052356,95486.0,95484.0,0.3608]
[1733238082863,0.10473452,95485.0,95484.0,0.3608]
[1733238083166,0.16538787,95485.0,95484.0,0.3608]
[1733238083567,0.052357,95485.0,95484.0,0.3608]
[1733238083759,0.26981853,95485.0,95475.0,9.487e-05]
[1733238083959,0.05236,95479.0,95475.0,9.487e-05]
[1733238084163,0.052402,95476.0,95475.0,9.487e-05]
[1733238084655,0.15713597,95476.0,95475.0,9.487e-05]
[1733238085264,0.15818102,95476.0,95475.0,9.487e-05]
[1733238085761,0.19296573,95476.0,95475.0,0.00109487]
[1733238085964,0.19296573,95476.0,95464.0,0.00157125]
[1733238085965,0.052368,95465.0,95464.0,0.00157125]
[1733238086358,0.35345305,95465.0,95440.0,0.0026]
[1733238086665,4e-05,95441.0,95436.0,0.3608]
[1733238086866,4e-05,95441.0,95440.0,0.052381]
[1733238087067,0.3608,95461.0,95448.0,0.052376]
[1733238087366,0.00104505,95455.0,95453.0,0.3608]
[1733238087556,0.00104505,95455.0,95454.0,0.052374]
[1733238088155,0.003,95465.0,95464.0,0.052368]
[1733238088355,0.003,95465.0,95464.0,0.413168]
[1733238088967,0.02986384,95474.0,95473.0,0.052363]
[1733238089163,0.0001176,95494.0,95473.0,0.58388]
[1733238089465,0.0001176,95494.0,95493.0,0.773952]
[1733238089661,0.0001176,95494.0,95493.0,0.7216]
[1733238090564,0.0001176,95494.0,95493.0,0.3608]
[1733238090766,0.10483676,95494.0,95493.0,0.3608]
[1733238091371,0.0001176,95494.0,95493.0,0.3608]
[1733238092270,0.0071176,95494.0,95493.0,0.3618]
[1733238092773,0.0071176,95494.0,95493.0,0.3628]
[1733238092970,0.11183676,95494.0,95493.0,0.3628]
[1733238093175,0.0071176,95494.0,95493.0,0.3628]
[1733238093980,0.0071176,95494.0,95493.0,0.415152]
[1733238094276,0.0071176,95494.0,95493.0,0.638192]
[1733238094576,0.0071176,95494.0,95493.0,0.415152]
[1733238095171,0.0071176,95494.0,95493.0,0.414152]
[1733238095368,0.0001176,95494.0,95493.0,0.638192]
[1733238096069,0.0001176,95494.0,95493.0,0.58584]
[1733238096771,0.0001176,95494.0,95493.0,0.5858]
[1733238098870,0.0001176,95494.0,95493.0,0.3608]
[1733238099068,0.0021176,95494.0,95493.0,0.3608]
[1733238099274,0.0021176,95494.0,95493.0,0.5838]
[1733238099476,0.08633702,95500.0,95498.0,0.052349]
[1733238099985,0.08633702,95500.0,95499.0,8e-05]
[1733238100570,0.0864435,95500.0,95499.0,8e-05]
[1733238102263,0.0864435,95500.0,95499.0,0.00108]
[1733238102463,0.0894435,95500.0,95499.0,0.00108]
[1733238102670,0.0894435,95500.0,95499.0,0.052429]
[1733238102877,0.0894435,95500.0,95499.0,0.053429]
[1733238104073,0.0894435,95500.0,95499.0,0.00108]
[1733238104465,0.0884435,95500.0,95499.0,0.00108]
[1733238105174,0.0884435,95500.0,95499.0,8e-05]
[1733238105471,0.0874435,95500.0,95499.0,8e-05]
[1733238105869,0.0874435,95500.0,95499.0,0.053429]
[1733238106075,0.0874435,95500.0,95499.0,0.00108]
[1733238106266,0.0874435,95500.0,95499.0,0.053429]
[1733238106979,0.0874435,95500.0,95499.0,0.00108]
[1733238108077,0.0864435,95500.0,95499.0,8e-05]
[1733238108269,0.0874435,95500.0,95499.0,8e-05]
[1733238109777,0.0874435,95500.0,95499.0,0.052429]
[1733238111995,0.0864435,95500.0,95499.0,0.052429]
[1733238114070,0.0864435,95500.0,95499.0,0.054429]
[1733238114678,0.0864435,95500.0,95499.0,0.274789]
[1733238115879,0.0864435,95500.0,95499.0,0.275789]
[1733238117073,0.0864435,95500.0,95499.0,0.053429]
[1733238117380,0.0864435,95500.0,95499.0,0.052429]
[1733238117578,0.0864435,95500.0,95499.0,0.274789]
[1733238118376,0.0864435,95500.0,95499.0,0.276789]
[1733238118780,0.0864435,95500.0,95499.0,0.054429]
[1733238119874,0.0864435,95500.0,95499.0,0.276789]
[1733238120070,0.0864435,95500.0,95499.0,0.053429]
[1733238120873,0.0864435,95500.0,95499.0,0.052429]
[1733238121069,0.0864435,95500.0,95499.0,0.053429]
[1733238121769,0.0864435,95500.0,95499.0,0.274789]
[1733238122377,0.18100904,95500.0,95499.0,0.274789]
[1733238122575,0.18100904,95500.0,95499.0,0.052429]
[1733238122774,0.18100904,95500.0,95499.0,8e-05]
[1733238123181,0.18101324,95500.0,95499.0,8e-05]
[1733238123775,0.18101324,95500.0,95499.0,0.00108]
[1733238123989,0.28872742,95500.0,95499.0,0.00108]
[1733238124378,0.18101324,95500.0,95499.0,0.00108]
[1733238124579,0.33807383,95500.0,95499.0,0.00108]
[1733238124785,0.33807383,95500.0,95499.0,8e-05]
[1733238124786,0.44876098,95500.0,95499.0,8e-05]
[1733238124978,0.39641298,95500.0,95499.0,8e-05]
[1733238125289,0.39641298,95500.0,95499.0,0.00108]
[1733238125477,0.30184324,95500.0,95499.0,0.00108]
[1733238125780,0.35419124,95500.0,95499.0,0.00108]
[1733238125987,0.30184324,95500.0,95499.0,0.00108]
[1733238126487,0.29884324,95500.0,95499.0,0.00108]
[1733238126680,0.35419124,95500.0,95499.0,0.00108]
[1733238127284,0.29884324,95500.0,95499.0,0.00108]
[1733238127484,0.0894435,95500.0,95499.0,0.053429]
[1733238128178,0.0894435,95500.0,95499.0,0.05352224]
[1733238128386,0.0894435,95500.0,95499.0,0.27588224]
[1733238128683,0.0894435,95500.0,95499.0,0.27488224]
[1733238129387,0.0894435,95500.0,95499.0,0.05252224]
[1733238129588,0.0864435,95500.0,95499.0,0.27488224]
[1733238130084,0.0864435,95500.0,95499.0,0.05252224]
[1733238130591,0.0864435,95500.0,95499.0,0.27488224]
[1733238131082,0.17854626,95500.0,95499.0,0.27488224]
[1733238131383,0.0864435,95500.0,95499.0,0.27488224]
[1733238132274,0.0864435,95500.0,95499.0,0.05252224]
[1733238132479,0.0864435,95500.0,95499.0,0.27488224]
[1733238132875,0.0874435,95500.0,95499.0,0.27488224]
[1733238133279,0.0874435,95500.0,95499.0,0.05252224]
[1733238133487,0.0874435,95500.0,95499.0,0.27412224]
[1733238133785,0.0864435,95500.0,95499.0,0.27412224]
[1733238133988,0.0864435,95500.0,95499.0,0.27512224]
[1733238134382,0.0864435,95500.0,95499.0,0.27412224]
[1733238135089,0.02981034,95503.0,95499.0,0.27412224]
[1733238135391,0.0524,95524.0,95499.0,0.27412224]
[1733238135392,0.0524,95524.0,95523.0,0.052336]
[1733238135587,0.052333,95529.0,95528.0,0.052333]
[1733238135894,0.052333,95529.0,95528.0,8e-05]
[1733238135895,0.091729,95529.0,95528.0,8e-05]
[1733238136093,0.19644159,95531.0,95530.0,0.052332]
[1733238136294,0.091729,95531.0,95530.0,0.052332]
[1733238136482,0.09180522,95531.0,95530.0,0.052412]
[1733238136681,7.622e-05,95531.0,95530.0,0.052412]
[1733238136985,0.19602637,95531.0,95530.0,0.274012]
[1733238137178,0.09169738,95531.0,95530.0,0.274012]
[1733238137579,0.10069738,95531.0,95530.0,0.275012]
[1733238137995,0.00907622,95531.0,95530.0,0.275012]
[1733238138295,0.00907622,95531.0,95530.0,0.276012]
[1733238138979,0.10050155,95531.0,95530.0,0.276012]
[1733238139182,7.622e-05,95531.0,95530.0,0.053412]
[1733238139385,7.622e-05,95531.0,95530.0,0.275972]
[1733238139386,0.00707622,95531.0,95530.0,0.275972]
[1733238140188,0.00607622,95531.0,95530.0,0.274972]
[1733238141094,0.00607622,95531.0,95530.0,0.053412]
[1733238141393,0.00607622,95531.0,95530.0,0.274972]
[1733238142288,0.00607622,95531.0,95530.0,0.053412]
[1733238142482,0.00607622,95531.0,95530.0,0.274972]
[1733238142884,0.3114279,95567.0,95530.0,0.22264]
[1733238143191,0.28137828,95571.0,95561.0,0.3608]
[1733238143192,0.10467861,95565.0,95561.0,0.3608]
[1733238143393,0.10467861,95565.0,95564.0,0.052313]
[1733238143594,0.02995747,95571.0,95562.0,0.22156]
[1733238143889,0.052309,95572.0,95570.0,0.3608]
[1733238144085,0.3062,95579.0,95570.0,0.3608]
[1733238144086,7.62e-05,95571.0,95570.0,0.3608]
[1733238145382,7.62e-05,95571.0,95570.0,0.5824167]
[1733238146097,7.62e-05,95571.0,95570.0,0.5834167]
[1733238146098,0.0020762,95571.0,95570.0,0.5834167]
[1733238146686,7.62e-05,95571.0,95570.0,0.5824167]
[1733238146985,7.62e-05,95571.0,95570.0,0.5844167]
[1733238147186,7.62e-05,95571.0,95570.0,0.3628967]
[1733238147488,7.62e-05,95571.0,95570.0,0.5834167]
[1733238148793,7.62e-05,95571.0,95570.0,0.3608967]
[1733238149002,7.62e-05,95571.0,95570.0,0.5843767]
[1733238149491,0.02875528,95579.0,95570.0,0.5843767]
[1733238149694,0.3326,95598.0,95578.0,0.413106]
[1733238149894,0.3326,95598.0,95595.0,0.052296]
[1733238150090,0.3326,95598.0,95597.0,0.3608]
[1733238150292,0.3326,95598.0,95597.0,0.36088]
[1733238150497,0.33267617,95598.0,95597.0,0.36088]
[1733238150895,0.36272217,95598.0,95597.0,0.36088]
[1733238151095,0.03012217,95598.0,95597.0,0.36088]
[1733238151598,0.03012217,95598.0,95597.0,0.36188]
[1733238152499,0.03212217,95598.0,95597.0,0.36188]
[1733238153094,0.13672741,95598.0,95597.0,0.00108]
[1733238153289,0.13777837,95598.0,95597.0,0.36188]
[1733238153497,0.03317313,95598.0,95597.0,0.36188]
[1733238154295,0.03317313,95598.0,95597.0,0.58232]
[1733238154488,0.03317313,95598.0,95597.0,0.58332]
[1733238155794,0.03317313,95598.0,95597.0,0.36188]
[1733238156301,0.03117313,95598.0,95597.0,0.36188]
[1733238156501,0.03317313,95598.0,95597.0,0.36088]
[1733238156697,0.03317313,95598.0,95597.0,0.36188]
[1733238156902,0.49857837,95598.0,95570.0,0.3608967]
[1733238157103,0.3608,95586.0,95571.0,0.273752]
[1733238157291,0.00105096,95579.0,95572.0,0.052311]
[1733238157495,0.00105096,95579.0,95575.0,0.052309]
[1733238157696,0.00105096,95579.0,95577.0,0.052309]
[1733238158298,0.3608,95589.0,95577.0,0.052309]
[1733238158595,0.00105096,95578.0,95577.0,0.052309]
[1733238159506,0.00105096,95578.0,95577.0,0.273749]
[1733238159896,0.02983929,95578.0,95577.0,0.273749]
[1733238160100,0.03083929,95578.0,95577.0,0.274749]
[1733238161002,0.03083929,95578.0,95577.0,0.053309]
[1733238161200,0.03183929,95578.0,95577.0,0.274749]
[1733238162301,0.03083929,95578.0,95577.0,0.274749]
[1733238162900,0.00205096,95578.0,95577.0,0.273749]
[1733238163294,0.00105096,95578.0,95577.0,0.273749]
[1733238163496,0.00205096,95578.0,95577.0,0.273749]
[1733238164205,0.00305096,95578.0,95577.0,0.273749]
[1733238164906,0.00205096,95578.0,95577.0,0.275749]
[1733238165699,0.00205096,95578.0,95577.0,0.054309]
[1733238165904,0.00205096,95578.0,95577.0,0.274829]
[1733238166303,0.00105096,95578.0,95577.0,0.274829]
[1733238166600,0.00205096,95578.0,95577.0,0.274829]
[1733238167706,0.00205096,95578.0,95577.0,0.29576099]
[1733238168109,0.00105096,95578.0,95577.0,0.29576099]
[1733238168403,0.00205096,95578.0,95577.0,0.29576099]
[1733238168607,0.00205096,95578.0,95577.0,0.29476099]
[1733238170405,0.00205096,95578.0,95577.0,0.29576099]
[1733238170904,0.00205096,95578.0,95577.0,0.07524099]
[1733238171102,0.00205096,95578.0,95577.0,0.29576099]
[1733238171413,9.6e-07,95578.0,95577.0,0.29376099]
[1733238173104,0.02944837,95581.0,95580.0,0.052308]
[1733238173303,0.0524,95589.0,95577.0,0.24145199]
[1733238173505,7.617e-05,95598.0,95582.0,0.3608]
[1733238173802,7.617e-05,95598.0,95583.0,0.22052]
[1733238173803,0.0524,95596.0,95583.0,0.22052]
[1733238174003,0.0524,95596.0,95584.0,0.052305]
[1733238174303,0.0524,95596.0,95584.0,0.22052]
[1733238174508,0.0524,95593.0,95577.0,0.001]
[1733238174708,0.0524,95591.0,95577.0,0.001]
[1733238175004,0.05231,95574.0,95573.0,0.3608]
[1733238175305,0.05231,95572.0,95570.0,9.67e-05]
[1733238175508,4e-05,95574.0,95570.0,9.67e-05]
[1733238175897,4e-05,95574.0,95573.0,4e-05]
[1733238176407,0.3208,95577.0,95574.0,0.052309]
[1733238176603,0.0524,95587.0,95579.0,0.052306]
[1733238176800,0.0524,95587.0,95580.0,0.3608]
[1733238177007,0.0524,95589.0,95586.0,4e-05]
[1733238177499,0.0524,95589.0,95588.0,4e-05]
[1733238178303,0.0544,95589.0,95588.0,4e-05]
[1733238179213,0.0554,95589.0,95588.0,4e-05]
[1733238179716,0.25386512,95589.0,95588.0,4e-05]
[1733238179906,0.14924697,95589.0,95588.0,4e-05]
[1733238180097,0.14924697,95589.0,95588.0,0.00104]
[1733238180098,0.0554,95589.0,95588.0,0.00104]
[1733238180302,0.16001509,95589.0,95588.0,0.00104]
[1733238180717,0.25396852,95589.0,95588.0,0.00104]
[1733238180911,0.16001509,95589.0,95588.0,0.00104]
[1733238181209,0.25396878,95589.0,95588.0,0.00104]
[1733238181507,0.16001509,95589.0,95588.0,0.00104]
[1733238181707,0.0554,95589.0,95588.0,0.00104]
[1733238182110,0.14949976,95589.0,95588.0,0.00104]
[1733238182309,0.25420128,95589.0,95588.0,0.00104]
[1733238182517,0.25419657,95589.0,95588.0,0.00104]
[1733238183510,0.25419657,95589.0,95573.0,0.41311]
[1733238183511,0.052305,95583.0,95570.0,9.67e-05]
[1733238183712,0.34811869,95582.0,95570.0,0.12622016]
[1733238183921,0.09411869,95582.0,95570.0,0.48702016]
[1733238184208,0.10461509,95581.0,95580.0,0.3608]
[1733238184524,0.003,95589.0,95583.0,0.052304]
[1733238184808,0.19963079,95588.0,95587.0,0.052302]
[1733238185014,0.10462877,95588.0,95587.0,0.052302]
[1733238185209,0.09498584,95588.0,95587.0,0.052302]
[1733238185408,0.03015815,95590.0,95588.0,0.052301]
[1733238185607,0.28113095,95594.0,95580.0,0.3608]
[1733238185608,0.28113095,95594.0,95592.0,0.052299]
[1733238185809,0.09580198,95593.0,95592.0,0.052299]
[1733238186010,0.0294772,95594.0,95593.0,0.052299]
[1733238186219,0.28113095,95595.0,95594.0,0.052298]